{"text_format":"3","workbook":"xlsx","n_sheets":2,"sheets":["Έναρξη","Τιμολόγιο παροχής υπηρεσιών"],"not_rendered":{"images":1,"defined_names":1},"read":"whole","date_system":"1900"}

{"sheet":"Έναρξη","index":0,"n_rows":8,"n_cols":2,"rows_kept":8}
[null,"ΠΛΗΡΟΦΟΡΙΕΣ ΓΙΑ ΑΥΤΟ ΤΟ ΠΡΟΤΥΠΟ"]
[null,"Χρησιμοποιήστε αυτό το πρότυπο για να δημιουργήσετε ένα Τιμολόγιο παροχής υπηρεσιών."]
[null,"Συμπληρώστε τα στοιχεία αριθμού τιμολογίου, ημερομηνια, επωνυμία εταιρείας, διεύθυνσης, συνθήματος και τιμολόγησης."]
[null,"Εισαγάγετε τις πληροφορίες σε πίνακες."]
[null,"Το σύνολο υπολογίζεται αυτόματα για εσάς."]
[null,"Σημείωση: "]
[null,"Στη στήλη A, στο φύλλο εργασίας \"ΤΙΜΟΛΌΓΙΟ ΠΑΡΟΧΉΣ ΥΠΗΡΕΣΙΏΝ\" παρέχονται πρόσθετες οδηγίες. Αυτό το κείμενο είναι κρυφό σκόπιμα. Για να καταργήσετε το κείμενο, επιλέξτε τη στήλη A και, στη συνέχεια, πατήστε το πλήκτρο DELETE. Για να εμφανίσετε το κείμενο, επιλέξτε τη στήλη A και, στη συνέχεια, αλλάξτε το χρώμα γραμματοσειράς."]
[null,"Για να μάθετε περισσότερα για τους πίνακες, πατήστε το πλήκτρο SHIFT και, στη συνέχεια, πατήστε το F10 μέσα σε έναν πίνακα, επιλέξτε ΠΙΝΑΚΑΣ και, στη συνέχεια, επιλέξτε ΕΝΑΛΛΑΚΤΙΚΟ ΚΕΙΜΕΝΟ."]

{"sheet":"Τιμολόγιο παροχής υπηρεσιών","index":1,"n_rows":43,"n_cols":5,"rows_kept":43,"merged":[[0,1,0,2],[0,3,0,4],[1,1,1,4],[2,1,2,3],[3,1,3,3],[4,1,4,2],[5,1,5,2],[6,1,6,2],[7,1,7,2],[41,1,41,2],[41,3,41,4],[42,1,42,4]]}
["Δημιουργήστε ένα τιμολόγιο παροχής υπηρεσιών σε αυτό το φύλλο εργασίας. Εισαγάγετε το λογότυπο της εταιρείας στο κελί στα δεξιά και τον τίτλο αυτού του φύλλου εργασίας στο κελί D1. Σε διάφορα κελιά σε αυτή τη στήλη βρίσκονται χρήσιμες οδηγίες για τον τρόπο χρήσης αυτού του φύλλου εργασίας. Η επόμενη οδηγία βρίσκεται στο κελί A3.","Σε αυτό το κελί βρίσκεται σύμβολο κράτησης θέσης λογότυπου.",null,"ΤΙΜΟΛΟΓΙΟ"]
[]
["Εισαγάγετε την επωνυμία της εταιρείας στο κελί στα δεξιά.","Η επωνυμία της εταιρείας σας"]
["Εισαγάγετε το σύνθημα της εταιρείας στο κελί στα δεξιά.","Το σύνθημα της εταιρείας σας"]
["Εισαγάγετε την οδό και τον αριθμό της εταιρείας στο κελί στα δεξιά και τον αριθμό τιμολογίου στο κελί E5.","Οδός και αριθμός",null,"ΑΡ. ΤΙΜΟΛΟΓΙΟΥ:","Αρ."]
["Εισαγάγετε την πόλη, τον νομό και τον ταχυδρομικό κώδικα στο κελί στα δεξιά και την ημερομηνια στο κελί E6.","Πόλη, νομός, ταχυδρομικός κώδικας",null,"ΗΜΕΡΟΜΗΝΙΑ ",{"$f":"TODAY()","v":"2019-04-19"}]
["Εισαγάγετε τους αριθμούς τηλεφώνου και φαξ στο κελί στα δεξιά και το Αναγνωριστικό στο κελί E7.","Τηλέφωνο Φαξ",null,"ΚΩΔΙΚΟΣ ΠΕΛΑΤΗ ","Αναγνωριστικό"]
["Εισαγάγετε τη διεύθυνση ηλεκτρονικού ταχυδρομείου στο κελί στα δεξιά.","Διεύθυνση ηλεκτρονικού ταχυδρομείου"]
["Η ετικέτα \"Σε\" βρίσκεται στο κελί στα δεξιά. Εισαγάγετε στοιχεία τιμολόγησης, όπως όνομα, επωνυμία εταιρείας, διεύθυνση και αριθμό τηλεφώνου στα κελιά C9 έως C13. Η επόμενη οδηγία βρίσκεται στο κελί A14.","ΣΕ","Όνομα"]
[null,null,"Επωνυμία εταιρείας"]
[null,null,"Οδός και αριθμός"]
[null,null,"Πόλη, νομός, ταχυδρομικός κώδικας"]
[null,null,"Τηλέφωνο"]
["Εισαγάγετε πληροφορίες στον πίνακα \"Στοιχεία Πωλήσεων\" ξεκινώντας από το κελί στα δεξιά. Η επόμενη οδηγία βρίσκεται στο κελί A17.","ΠΩΛΗΤΗΣ","ΕΡΓΑΣΙΑ","ΟΡΟΙ ΠΛΗΡΩΜΗΣ","ΠΡΟΘΕΣΜΙΑ"]
[{"$nulls":3},"Εξόφληση με την παραλαβή"]
[]
["Εισαγάγετε πληροφορίες στον πίνακα \"Τιμολόγιο\" ξεκινώντας από το κελί στα δεξιά. Το μερικο αθροισμα και το σύνολο υπολογίζονται άθροισμα. Η επόμενη οδηγία βρίσκεται στο κελί A42.","ΠΟΣΟΤΗΤΑ","ΠΕΡΙΓΡΑΦΗ","ΤΙΜΗ ΜΟΝΑΔΑΣ","ΣΥΝΟΛΟ ΓΡΑΜΜΗΣ"]
[{"$nulls":4},{"$f":"IF(SUM(B18)>0,SUM(B18*'Τιμολόγιο παροχής υπηρεσιών'!$D18),\"\")","v":""}]
[{"$nulls":4},{"$f":"IF(SUM(B19)>0,SUM(B19*'Τιμολόγιο παροχής υπηρεσιών'!$D19),\"\")","v":""}]
[{"$nulls":4},{"$f":"IF(SUM(B20)>0,SUM(B20*'Τιμολόγιο παροχής υπηρεσιών'!$D20),\"\")","v":""}]
[{"$nulls":4},{"$f":"IF(SUM(B21)>0,SUM(B21*'Τιμολόγιο παροχής υπηρεσιών'!$D21),\"\")","v":""}]
[{"$nulls":4},{"$f":"IF(SUM(B22)>0,SUM(B22*'Τιμολόγιο παροχής υπηρεσιών'!$D22),\"\")","v":""}]
[{"$nulls":4},{"$f":"IF(SUM(B23)>0,SUM(B23*'Τιμολόγιο παροχής υπηρεσιών'!$D23),\"\")","v":""}]
[{"$nulls":4},{"$f":"IF(SUM(B24)>0,SUM(B24*'Τιμολόγιο παροχής υπηρεσιών'!$D24),\"\")","v":""}]
[{"$nulls":4},{"$f":"IF(SUM(B25)>0,SUM(B25*'Τιμολόγιο παροχής υπηρεσιών'!$D25),\"\")","v":""}]
[{"$nulls":4},{"$f":"IF(SUM(B26)>0,SUM(B26*'Τιμολόγιο παροχής υπηρεσιών'!$D26),\"\")","v":""}]
[{"$nulls":4},{"$f":"IF(SUM(B27)>0,SUM(B27*'Τιμολόγιο παροχής υπηρεσιών'!$D27),\"\")","v":""}]
[{"$nulls":4},{"$f":"IF(SUM(B28)>0,SUM(B28*'Τιμολόγιο παροχής υπηρεσιών'!$D28),\"\")","v":""}]
[{"$nulls":4},{"$f":"IF(SUM(B29)>0,SUM(B29*'Τιμολόγιο παροχής υπηρεσιών'!$D29),\"\")","v":""}]
[{"$nulls":4},{"$f":"IF(SUM(B30)>0,SUM(B30*'Τιμολόγιο παροχής υπηρεσιών'!$D30),\"\")","v":""}]
[{"$nulls":4},{"$f":"IF(SUM(B31)>0,SUM(B31*'Τιμολόγιο παροχής υπηρεσιών'!$D31),\"\")","v":""}]
[{"$nulls":4},{"$f":"IF(SUM(B32)>0,SUM(B32*'Τιμολόγιο παροχής υπηρεσιών'!$D32),\"\")","v":""}]
[{"$nulls":4},{"$f":"IF(SUM(B33)>0,SUM(B33*'Τιμολόγιο παροχής υπηρεσιών'!$D33),\"\")","v":""}]
[{"$nulls":4},{"$f":"IF(SUM(B34)>0,SUM(B34*'Τιμολόγιο παροχής υπηρεσιών'!$D34),\"\")","v":""}]
[{"$nulls":4},{"$f":"IF(SUM(B35)>0,SUM(B35*'Τιμολόγιο παροχής υπηρεσιών'!$D35),\"\")","v":""}]
[{"$nulls":4},{"$f":"IF(SUM(B36)>0,SUM(B36*'Τιμολόγιο παροχής υπηρεσιών'!$D36),\"\")","v":""}]
[{"$nulls":4},{"$f":"IF(SUM(B37)>0,SUM(B37*'Τιμολόγιο παροχής υπηρεσιών'!$D37),\"\")","v":""}]
[{"$nulls":3},"ΜΕΡΙΚΟ ΑΘΡΟΙΣΜΑ",{"$f":"IF(SUM(E18:E37)>0,SUM(E18:E37),\"\")","v":""}]
[{"$nulls":3},"ΦΠΑ"]
[{"$nulls":3},"ΆΘΡΟΙΣΜΑ",{"$f":"IF(SUM(E38)>0,SUM((E38*E39)+E38),\"\")","v":""}]
[]
["Η επωνυμία της εταιρείας ενημερώνεται αυτόματα στο κελί D42.","Όλες οι επιταγές πληρωτέες στην εταιρεία",null,{"$f":"B3","v":"Η επωνυμία της εταιρείας σας"}]
["Το κελί στα δεξιά περιέχει ένα μήνυμα \"Ευχαριστούμε\".","ΕΥΧΑΡΙΣΤΟΥΜΕ ΓΙΑ ΤΗΝ ΠΡΟΤΙΜΗΣΗ ΣΑΣ!"]